bitfinex/quotes_SOLUSD_20241231
["timestamp","ask_amount","ask_price","bid_price","bid_amount"]
[1735676008075,8.16235544,194.25,194.21,20.0]
[1735676008293,8.16235544,194.26,194.21,20.0]
[1735676008488,8.16235544,194.25,194.21,20.0]
[1735676009183,8.16235544,194.25,194.18,21.03645544]
[1735676009681,8.16235544,194.24,194.18,12.8741]
[1735676009882,8.16235544,194.24,194.2,20.0]
[1735676010086,8.16235544,194.23,194.16,8.16235544]
[1735676012884,8.16235544,194.22,194.15,21.03885544]
[1735676013086,8.16235544,194.23,194.16,8.16235544]
[1735676020819,8.16235544,194.23,194.15,21.03885544]
[1735676021119,8.16235544,194.22,194.15,21.03885544]
[1735676021493,8.16235544,194.24,194.16,8.16235544]
[1735676021695,8.16235544,194.23,194.16,8.16235544]
[1735676023531,8.16235544,194.22,194.15,21.03885544]
[1735676024019,1.5013,194.28,194.18,8.16235544]
[1735676024222,8.16235544,194.26,194.18,8.16235544]
[1735676025529,8.16235544,194.26,194.19,12.8739]
[1735676025706,8.16235544,194.26,194.19,21.03625544]
[1735676026326,8.16235544,194.25,194.19,12.8739]
[1735676028229,8.16235544,194.24,194.19,12.8739]
[1735676029232,1.5013,194.28,194.19,20.0]
[1735676029233,8.16235544,194.21,194.19,20.0]
[1735676029436,8.16235544,194.2,194.13,8.16235544]
[1735676029936,8.16235544,194.2,194.16,20.0]
[1735676030333,8.16235544,194.22,194.15,8.16235544]
[1735676030637,8.16235544,194.21,194.15,8.16235544]
[1735676031912,8.16235544,194.2,194.16,20.0]
[1735676032230,8.16235544,194.21,194.16,20.0]
[1735676032603,8.16235544,194.21,194.14,8.16235544]
[1735676033313,22.78069468,194.28,194.16,8.16235544]
[1735676033314,8.16235544,194.22,194.16,8.16235544]
[1735676033522,8.16235544,194.25,194.18,8.16235544]
[1735676033917,8.16235544,194.23,194.16,8.16235544]
[1735676034231,8.16235544,194.22,194.18,20.0]
[1735676034531,8.16235544,194.23,194.18,20.0]
[1735676034830,8.16235544,194.22,194.18,20.0]
[1735676035728,8.16235544,194.23,194.16,28.16235544]
[1735676038744,8.16235544,194.24,194.17,8.16235544]
[1735676039243,8.16235544,194.23,194.18,20.0]
[1735676039941,8.16235544,194.24,194.18,20.0]
[1735676040652,8.16235544,194.25,194.18,28.16235544]
[1735676040825,8.16235544,194.24,194.18,20.0]
[1735676043152,8.16235544,194.23,194.18,20.0]
[1735676043346,8.16235544,194.24,194.18,20.0]
[1735676043528,8.16235544,194.27,194.19,8.16235544]
[1735676044049,8.16235544,194.27,194.2,8.16235544]
[1735676044249,8.16235544,194.27,194.19,8.16235544]
[1735676044456,8.16235544,194.27,194.19,21.03595544]
[1735676044945,6.4198,194.31,194.23,8.16235544]
[1735676045123,8.16235544,194.3,194.23,8.16235544]
[1735676045327,8.16235544,194.3,194.24,20.0]
[1735676045533,14.58215544,194.31,194.24,28.16235544]
[1735676049059,14.58215544,194.31,194.23,41.03325544]
[1735676049233,8.16235544,194.3,194.23,41.03325544]
[1735676050558,14.58215544,194.31,194.24,8.16235544]
[1735676052054,8.16235544,194.32,194.25,21.03235544]
[1735676052234,1.5839,194.33,194.27,8.16235544]
[1735676052427,9.74625544,194.33,194.26,8.16235544]
[1735676053345,14.77135544,194.36,194.29,8.16235544]
[1735676053525,8.16235544,194.35,194.28,8.16235544]
[1735676055164,14.77135544,194.36,194.28,8.16235544]
[1735676055330,1.5839,194.37,194.29,8.16235544]
[1735676055551,9.74625544,194.37,194.3,8.16235544]
[1735676057851,8.16235544,194.36,194.29,8.16235544]
[1735676060062,9.74625544,194.37,194.3,8.16235544]
[1735676060648,8.16235544,194.36,194.29,8.16235544]
[1735676061862,8.16235544,194.36,194.31,20.0]
[1735676062156,8.16235544,194.34,194.31,20.0]
[1735676062761,8.16235544,194.34,194.29,20.0]
[1735676063061,8.16235544,194.34,194.3,20.0]
[1735676063367,8.16235544,194.36,194.3,20.0]
[1735676064356,1.5839,194.37,194.3,28.16235544]
[1735676065261,7.7477,194.42,194.35,8.16235544]
[1735676065447,7.7477,194.42,194.36,8.16235544]
[1735676066264,15.91005544,194.42,194.35,8.16235544]
[1735676066830,8.16235544,194.4,194.33,21.02665544]
[1735676067257,8.16235544,194.41,194.33,21.02665544]
[1735676067471,8.16235544,194.41,194.34,8.16235544]
[1735676068464,8.16235544,194.4,194.33,8.16235544]
[1735676068648,8.16235544,194.4,194.33,28.16235544]
[1735676069137,8.16235544,194.41,194.33,28.16235544]
[1735676069465,8.16235544,194.39,194.33,20.0]
[1735676070859,8.16235544,194.38,194.33,20.0]
[1735676071176,8.16235544,194.37,194.3,21.02895544]
[1735676071536,8.16235544,194.37,194.3,8.16235544]
[1735676074060,8.16235544,194.39,194.32,8.16235544]
[1735676074248,8.16235544,194.39,194.32,28.16235544]
[1735676074956,7.7477,194.42,194.33,8.16235544]
[1735676075140,15.91005544,194.42,194.35,8.16235544]
[1735676075467,7.7477,194.42,194.36,28.16235544]
[1735676075771,1.55,194.42,194.37,8.16235544]
[1735676075943,8.16235544,194.44,194.37,8.16235544]
[1735676077850,89.0688,194.47,194.37,8.16235544]
[1735676077851,8.16235544,194.45,194.37,8.16235544]
[1735676078181,8.16235544,194.46,194.38,8.16235544]
[1735676078966,8.16235544,194.46,194.39,8.16235544]
[1735676079288,8.16235544,194.46,194.39,28.16235544]
[1735676079768,15.93115544,194.47,194.4,8.16235544]
[1735676079972,1.6075,194.47,194.42,8.16235544]
[1735676080174,1.6075,194.47,194.43,20.0]
[1735676081748,9.76985544,194.47,194.4,8.16235544]
[1735676081936,8.16235544,194.44,194.37,8.16235544]
[1735676084380,8.16235544,194.45,194.4,20.0]
[1735676084550,8.16235544,194.46,194.4,20.0]
[1735676085553,1.6075,194.47,194.4,28.16235544]
[1735676085753,9.76985544,194.47,194.43,20.0]
[1735676085962,8.16235544,194.45,194.38,8.16235544]
[1735676086159,8.16235544,194.44,194.37,8.16235544]
[1735676086559,8.16235544,194.43,194.4,20.0]
[1735676086868,8.16235544,194.42,194.36,23.776884]
[1735676087074,8.16235544,194.42,194.39,20.0]
[1735676087459,8.16235544,194.43,194.39,20.0]
[1735676087875,8.16235544,194.44,194.39,20.0]
[1735676089075,8.16235544,194.45,194.39,20.0]
[1735676089303,14.25805544,194.46,194.39,28.16235544]
[1735676089863,1.6075,194.47,194.41,8.16235544]
[1735676091070,1.6075,194.47,194.42,8.16235544]
[1735676093155,6.1939,194.51,194.4,12.86]
[1735676093156,8.16235544,194.5,194.43,8.16235544]
[1735676093356,8.16235544,194.5,194.43,28.16235544]
[1735676094573,8.16235544,194.49,194.43,20.0]
[1735676096060,8.16235544,194.5,194.43,28.16235544]
[1735676097182,8.16235544,194.49,194.43,20.0]
[1735676098567,8.41109468,194.54,194.43,20.0]
[1735676098775,8.16235544,194.49,194.43,20.0]
[1735676099360,8.16235544,194.48,194.43,20.0]
[1735676100492,8.16235544,194.47,194.43,20.0]
[1735676100717,8.16235544,194.48,194.43,20.0]
[1735676100874,8.16235544,194.46,194.43,20.0]
[1735676101068,8.16235544,194.45,194.38,8.16235544]
[1735676101271,8.16235544,194.43,194.4,20.0]
[1735676101759,8.16235544,194.44,194.4,20.0]
[1735676104608,8.16235544,194.43,194.32,35.407156]
[1735676104901,8.16235544,194.41,194.35,8.16235544]
[1735676105368,8.16235544,194.4,194.33,21.02705544]
[1735676105772,8.16235544,194.38,194.32,8.16235544]
[1735676105972,8.16235544,194.38,194.31,8.16235544]
[1735676106472,8.16235544,194.37,194.31,8.16235544]
[1735676106690,8.16235544,194.39,194.32,8.16235544]
[1735676107079,8.16235544,194.39,194.33,31.93923944]
[1735676107706,8.16235544,194.39,194.32,21.02725544]
[1735676108193,8.16235544,194.39,194.33,8.16235544]
[1735676108501,8.16235544,194.4,194.33,8.16235544]
[1735676108874,8.16235544,194.39,194.32,8.16235544]
[1735676109091,8.16235544,194.38,194.31,28.16235544]
[1735676110602,8.16235544,194.39,194.32,8.16235544]
[1735676111484,8.16235544,194.4,194.33,8.16235544]
[1735676111807,1.501,194.42,194.36,8.16235544]
[1735676111979,8.16235544,194.43,194.36,8.16235544]
[1735676112508,1.501,194.47,194.37,8.16235544]
[1735676112509,8.16235544,194.44,194.37,8.16235544]
[1735676112880,1.501,194.47,194.32,19.4378]
[1735676112881,8.16235544,194.45,194.38,8.16235544]
[1735676115683,8.16235544,194.44,194.38,8.16235544]
[1735676116083,8.16235544,194.45,194.38,8.16235544]
[1735676116599,8.16235544,194.44,194.37,31.93923944]
[1735676116807,8.16235544,194.45,194.38,8.16235544]
[1735676118221,8.16235544,194.44,194.37,31.93923944]
[1735676119410,8.16235544,194.43,194.37,23.776884]
[1735676120303,8.16235544,194.45,194.38,8.16235544]
[1735676120617,8.16235544,194.44,194.38,8.16235544]
[1735676121320,8.16235544,194.44,194.37,31.93923944]
[1735676122719,8.16235544,194.45,194.38,8.16235544]
[1735676124488,8.16235544,194.44,194.37,31.93923944]
[1735676126407,8.16235544,194.44,194.37,23.776884]
[1735676126607,8.16235544,194.4,194.33,20.95661691]
[1735676126918,8.16235544,194.37,194.33,8.09221691]
[1735676127334,8.16235544,194.36,194.33,8.09221691]
[1735676127717,8.16235544,194.37,194.33,8.09221691]
[1735676127910,8.16235544,194.37,194.3,21.02875544]
[1735676128345,1.5929,194.4,194.29,8.16235544]
[1735676128346,8.16235544,194.35,194.29,8.16235544]
[1735676128510,34.24232176,194.4,194.27,8.09221691]
[1735676128511,8.16235544,194.32,194.27,8.09221691]
[1735676128832,34.24232176,194.4,194.27,8.09221691]
[1735676128833,8.16235544,194.31,194.27,8.09221691]
[1735676129428,8.16235544,194.32,194.25,31.93923944]
[1735676129820,8.16235544,194.31,194.25,23.776884]
[1735676131507,8.16235544,194.3,194.25,23.776884]
[1735676131704,8.16235544,194.3,194.24,21.03265544]
[1735676133135,8.16235544,194.3,194.24,8.16235544]
[1735676134235,8.16235544,194.29,194.22,8.16235544]
[1735676134839,12.8632,194.36,194.23,8.16235544]
[1735676134840,8.16235544,194.3,194.23,8.16235544]
[1735676135213,20.0,194.36,194.25,8.16235544]
[1735676135539,8.16235544,194.32,194.25,8.16235544]
[1735676135926,20.0,194.36,194.24,31.93923944]
[1735676136131,8.16235544,194.31,194.24,31.93923944]
[1735676139639,8.16235544,194.32,194.25,8.16235544]
[1735676140420,8.16235544,194.31,194.24,8.16235544]
[1735676140644,8.16235544,194.3,194.24,8.16235544]
[1735676140834,8.16235544,194.31,194.24,8.16235544]
[1735676141034,8.16235544,194.32,194.25,31.93923944]
[1735676141236,8.16235544,194.32,194.25,8.16235544]
[1735676142437,8.16235544,194.31,194.24,31.93923944]
[1735676145037,8.16235544,194.35,194.28,28.16235544]
[1735676145344,8.16235544,194.37,194.3,8.16235544]
[1735676146545,8.16235544,194.36,194.29,31.93923944]
[1735676147535,8.16235544,194.37,194.3,8.16235544]
[1735676147940,8.16235544,194.36,194.29,31.93923944]
[1735676149647,8.16235544,194.35,194.28,28.16235544]
[1735676149824,8.16235544,194.32,194.24,12.8704]
[1735676150123,8.16235544,194.31,194.24,21.03275544]
[1735676150322,8.16235544,194.31,194.25,23.776884]
[1735676150523,8.16235544,194.31,194.24,21.03275544]
[1735676151934,8.16235544,194.32,194.25,8.16235544]
[1735676153452,8.16235544,194.33,194.26,8.16235544]
[1735676157352,34.24232176,194.4,194.27,31.93923944]
[1735676157653,8.16235544,194.35,194.28,8.16235544]
[1735676158138,8.16235544,194.35,194.27,31.93923944]
[1735676158655,8.16235544,194.35,194.28,8.16235544]
[1735676160457,8.16235544,194.36,194.28,8.16235544]
[1735676162433,8.16235544,194.34,194.3,20.0]
[1735676162755,8.16235544,194.34,194.27,31.93923944]
[1735676162929,8.16235544,194.33,194.26,21.03105544]
[1735676163135,8.16235544,194.3,194.23,21.03335544]
[1735676163360,8.16235544,194.3,194.26,20.0]
[1735676164446,8.16235544,194.29,194.23,12.871]
[1735676166155,8.16235544,194.28,194.22,1.5492]
[1735676166359,8.16235544,194.27,194.21,6.2094]
[1735676166559,8.16235544,194.27,194.2,21.03535544]
[1735676169448,8.16235544,194.28,194.21,8.16235544]
[1735676170385,8.16235544,194.29,194.22,8.16235544]
[1735676172356,8.16235544,194.28,194.21,31.93923944]
[1735676175177,8.16235544,194.28,194.21,8.16235544]
[1735676175980,8.16235544,194.29,194.22,8.16235544]
[1735676176974,1.5496,194.32,194.23,31.93923944]
[1735676177172,1.5496,194.32,194.24,8.16235544]
[1735676177471,8.16235544,194.34,194.27,8.16235544]
[1735676177852,8.16235544,194.35,194.28,8.16235544]
[1735676178049,9.71405544,194.38,194.31,8.16235544]
[1735676178380,6.5325,194.39,194.32,8.16235544]
[1735676178381,8.16235544,194.39,194.32,8.16235544]
[1735676179647,8.16235544,194.37,194.33,20.0]
[1735676179855,8.16235544,194.38,194.33,20.0]
[1735676180351,8.16235544,194.39,194.33,20.0]
[1735676182492,1.5517,194.43,194.34,31.93923944]
[1735676182682,8.16235544,194.43,194.36,31.93923944]
[1735676183958,8.16235544,194.44,194.37,8.16235544]
[1735676186387,8.16235544,194.46,194.38,8.16235544]
[1735676186761,8.16235544,194.46,194.39,8.16235544]
[1735676189681,1.5517,194.48,194.36,12.8622]
[1735676189682,8.16235544,194.47,194.4,8.16235544]
[1735676189884,8.16235544,194.47,194.41,23.776884]
[1735676190995,8.16235544,194.48,194.41,23.776884]
[1735676191296,8.16235544,194.47,194.41,23.776884]
[1735676191994,8.16235544,194.46,194.39,8.16235544]
[1735676192167,8.16235544,194.46,194.39,20.0]
[1735676192371,8.16235544,194.46,194.4,23.776884]
[1735676193697,8.16235544,194.45,194.39,20.0]
[1735676194199,8.16235544,194.44,194.39,20.0]
[1735676195781,8.16235544,194.45,194.39,20.0]
[1735676196874,8.16235544,194.47,194.39,28.16235544]
[1735676197078,8.16235544,194.47,194.4,31.93923944]
[1735676197473,8.16235544,194.47,194.4,23.776884]
[1735676198592,20.0,194.5,194.4,31.93923944]
[1735676198910,8.16235544,194.48,194.4,31.93923944]
[1735676201300,1.5169,194.52,194.4,14.4531]
[1735676201472,8.16235544,194.52,194.45,8.16235544]
[1735676201796,8.16235544,194.54,194.48,23.776884]
[1735676201976,1.5169,194.57,194.46,23.776884]
[1735676201977,8.16235544,194.56,194.5,23.776884]
[1735676202199,8.16235544,194.57,194.5,8.16235544]
[1735676204920,8.16235544,194.56,194.49,51.93923944]
[1735676205098,8.16235544,194.55,194.49,43.776884]
[1735676205833,8.16235544,194.55,194.49,20.0]
[1735676206028,8.16235544,194.53,194.46,14.41235544]
[1735676206198,8.16235544,194.51,194.46,6.25]
[1735676206842,8.16235544,194.52,194.46,6.25]
[1735676206994,8.16235544,194.53,194.46,31.93923944]
[1735676207193,8.16235544,194.52,194.46,23.776884]
[1735676209213,8.16235544,194.5,194.43,1.5464]
[1735676209523,8.16235544,194.48,194.42,6.3193]
[1735676209742,8.16235544,194.48,194.41,8.16235544]
[1735676210038,8.16235544,194.48,194.41,28.16235544]
[1735676210238,8.16235544,194.49,194.42,31.93923944]
[1735676210632,8.16235544,194.5,194.43,28.16235544]
[1735676212719,8.16235544,194.53,194.46,8.16235544]
[1735676212919,8.16235544,194.54,194.46,8.16235544]
[1735676213135,8.16235544,194.56,194.48,31.93923944]
[1735676213374,8.16235544,194.56,194.5,23.776884]
[1735676213908,8.16235544,194.56,194.48,31.93923944]
[1735676214108,8.16235544,194.57,194.5,8.16235544]
[1735676214413,8.16235544,194.56,194.49,8.16235544]
[1735676214741,8.16235544,194.55,194.48,8.16235544]
[1735676215536,8.16235544,194.55,194.49,23.776884]
[1735676216235,8.16235544,194.56,194.49,23.776884]
[1735676216826,8.16235544,194.57,194.5,31.93923944]
[1735676217025,8.16235544,194.56,194.49,8.16235544]
[1735676217236,8.16235544,194.56,194.49,31.93923944]
[1735676218336,8.16235544,194.56,194.49,23.776884]
[1735676220427,8.16235544,194.56,194.49,31.93923944]
[1735676221645,8.16235544,194.56,194.48,20.0]
[1735676221646,8.16235544,194.57,194.5,31.93923944]
[1735676221832,8.16235544,194.59,194.52,23.776884]
[1735676222140,8.16235544,194.59,194.52,31.93923944]
[1735676222441,8.16235544,194.6,194.52,31.93923944]
[1735676223145,8.16235544,194.59,194.52,31.93923944]
[1735676223330,8.16235544,194.58,194.52,23.776884]
[1735676223527,1.6228,194.63,194.54,23.776884]
[1735676223832,8.16235544,194.61,194.54,8.16235544]
[1735676224417,8.16235544,194.63,194.56,31.93923944]
[1735676224748,8.16235544,194.61,194.54,9.71255544]
[1735676225335,8.16235544,194.61,194.55,23.776884]
[1735676226750,8.16235544,194.62,194.55,31.93923944]
[1735676227732,14.4654,194.67,194.56,8.16235544]
[1735676228064,8.16235544,194.63,194.55,31.93923944]
[1735676228428,8.16235544,194.63,194.56,8.16235544]
[1735676229061,8.16235544,194.63,194.55,31.93923944]
[1735676229237,8.16235544,194.62,194.55,31.93923944]
[1735676229437,8.16235544,194.61,194.55,23.776884]
[1735676230529,8.16235544,194.62,194.55,31.93923944]
[1735676230857,8.16235544,194.63,194.56,8.16235544]
[1735676234863,8.16235544,194.62,194.55,31.93923944]
[1735676238563,14.4654,194.67,194.55,31.93923944]
[1735676238731,8.16235544,194.62,194.55,31.93923944]
[1735676239242,8.16235544,194.66,194.59,31.93923944]
[1735676239861,21.25159468,194.7,194.59,31.93923944]
[1735676240172,12.8405,194.7,194.61,23.776884]
[1735676240343,8.16235544,194.68,194.61,31.93923944]
[1735676243170,1.6228,194.72,194.61,23.776884]
[1735676243171,8.16235544,194.67,194.61,23.776884]
[1735676245353,8.16235544,194.68,194.61,8.16235544]
[1735676248277,8.41109468,194.75,194.64,8.16235544]
[1735676248581,8.16235544,194.72,194.66,23.776884]
[1735676248773,8.16235544,194.75,194.68,8.16235544]
[1735676248947,8.16235544,194.76,194.68,8.16235544]
[1735676249276,8.16235544,194.77,194.7,31.93923944]
[1735676249447,8.16235544,194.77,194.7,8.16235544]
[1735676249651,14.355,194.83,194.72,23.776884]
[1735676249652,8.16235544,194.78,194.72,23.776884]
[1735676249975,8.16235544,194.79,194.72,31.93923944]
[1735676250964,8.16235544,194.78,194.72,23.776884]
[1735676253478,8.16235544,194.76,194.69,9.82125544]
[1735676253858,8.16235544,194.76,194.7,23.776884]
[1735676254061,8.16235544,194.74,194.69,21.6589]
[1735676255179,8.16235544,194.74,194.67,8.16235544]
[1735676255350,8.16235544,194.73,194.68,23.776884]
[1735676256047,8.16235544,194.73,194.67,23.776884]
[1735676257177,8.16235544,194.73,194.67,31.93923944]
[1735676257579,8.16235544,194.72,194.65,8.16235544]
[1735676258398,8.16235544,194.72,194.66,23.776884]
[1735676260293,8.16235544,194.73,194.66,31.93923944]
[1735676260804,8.16235544,194.72,194.65,31.93923944]
[1735676260981,8.16235544,194.73,194.66,8.16235544]
[1735676261898,8.16235544,194.72,194.65,31.93923944]
[1735676262066,8.16235544,194.73,194.66,8.16235544]
[1735676262465,8.16235544,194.72,194.65,31.93923944]
[1735676262692,8.16235544,194.71,194.65,23.776884]
[1735676263258,7.9196,194.77,194.61,6.2314]
[1735676263259,8.16235544,194.68,194.61,6.2314]
[1735676263460,8.16235544,194.68,194.61,14.39375544]
[1735676264187,8.16235544,194.69,194.62,31.93923944]
[1735676265477,8.16235544,194.68,194.61,8.16235544]
[1735676265673,8.16235544,194.67,194.6,8.16235544]
[1735676266682,8.16235544,194.67,194.61,23.776884]
[1735676266864,8.16235544,194.68,194.61,23.776884]
[1735676267071,8.16235544,194.68,194.6,8.16235544]
[1735676267272,8.16235544,194.68,194.61,31.93923944]
[1735676267976,8.16235544,194.69,194.61,31.93923944]
[1735676268163,8.16235544,194.69,194.62,8.16235544]
[1735676268794,8.16235544,194.68,194.61,8.16235544]
[1735676269568,8.16235544,194.69,194.61,8.16235544]
[1735676269764,8.16235544,194.69,194.62,8.16235544]
[1735676271092,8.16235544,194.7,194.63,8.16235544]
[1735676271295,12.8366,194.76,194.65,8.16235544]
[1735676271463,8.16235544,194.72,194.65,8.16235544]
[1735676271791,8.16235544,194.73,194.65,8.16235544]
[1735676271994,8.16235544,194.72,194.65,8.16235544]
[1735676272987,8.16235544,194.71,194.65,23.776884]
[1735676273700,8.16235544,194.7,194.64,20.0]
[1735676275367,7.9196,194.77,194.67,23.776884]
[1735676275567,8.16235544,194.73,194.67,23.776884]
[1735676275804,8.16235544,194.73,194.65,31.93923944]
[1735676276371,7.9196,194.77,194.65,31.93923944]
[1735676276372,8.16235544,194.72,194.65,31.93923944]
[1735676277701,8.16235544,194.71,194.65,23.776884]
[1735676280117,8.16235544,194.7,194.64,20.0]
[1735676280916,8.16235544,194.71,194.64,28.16235544]
[1735676281489,8.16235544,194.72,194.64,28.16235544]
[1735676283017,8.16235544,194.7,194.61,12.8458]
[1735676283191,8.16235544,194.68,194.61,8.16235544]
[1735676283515,8.16235544,194.7,194.63,8.16235544]
[1735676284727,20.0,194.73,194.63,8.16235544]
[1735676284728,8.16235544,194.71,194.63,8.16235544]
[1735676284909,8.16235544,194.7,194.63,8.16235544]
[1735676285528,8.16235544,194.7,194.62,31.93923944]
[1735676286029,8.16235544,194.68,194.61,28.16235544]
[1735676286732,8.16235544,194.71,194.63,8.16235544]
[1735676286904,8.16235544,194.71,194.64,8.16235544]
[1735676287325,8.16235544,194.71,194.63,8.16235544]
[1735676290512,7.9196,194.77,194.66,20.0]
[1735676290827,8.16235544,194.73,194.66,28.16235544]
[1735676291830,8.16235544,194.74,194.67,31.93923944]
[1735676295828,8.16235544,194.75,194.67,31.93923944]
[1735676296036,8.16235544,194.77,194.69,8.16235544]
[1735676296220,8.16235544,194.78,194.71,8.16235544]
[1735676296424,8.16235544,194.76,194.69,8.16235544]
[1735676297109,20.0,194.79,194.69,8.16235544]
[1735676297411,8.16235544,194.76,194.69,8.16235544]
[1735676299335,8.16235544,194.79,194.72,8.16235544]
[1735676300642,8.16235544,194.75,194.7,6.1087]
[1735676300929,8.16235544,194.75,194.69,23.776884]
[1735676301111,8.16235544,194.76,194.69,31.93923944]
[1735676301308,8.16235544,194.75,194.68,8.16235544]
[1735676301505,8.16235544,194.75,194.69,23.776884]
[1735676301918,32.64942176,194.8,194.69,23.776884]
[1735676302122,8.16235544,194.75,194.69,23.776884]
[1735676304735,8.16235544,194.76,194.69,8.16235544]
[1735676305718,8.16235544,194.75,194.69,23.776884]
[1735676306439,8.16235544,194.79,194.71,8.16235544]
[1735676306627,8.16235544,194.79,194.72,23.776884]
[1735676306835,8.16235544,194.8,194.73,8.16235544]
[1735676307014,8.16235544,194.8,194.74,23.776884]
[1735676309536,8.16235544,194.78,194.73,1.5145]
[1735676311442,8.16235544,194.76,194.69,21.00285544]
[1735676311948,8.16235544,194.76,194.7,23.776884]
[1735676313639,8.16235544,194.77,194.7,31.93923944]
[1735676315446,8.16235544,194.74,194.68,1.5225]
[1735676315643,8.16235544,194.72,194.68,1.5225]
[1735676315946,8.16235544,194.7,194.66,6.1087]
[1735676316244,8.16235544,194.71,194.66,6.1087]
[1735676317445,8.16235544,194.71,194.65,23.776884]
[1735676317760,8.16235544,194.68,194.63,1.5225]
[1735676317937,8.16235544,194.66,194.61,6.229]
[1735676318250,22.8363,194.76,194.61,6.229]
[1735676318251,8.16235544,194.65,194.61,6.229]
[1735676318485,8.16235544,194.65,194.59,8.09221691]
[1735676318624,8.16235544,194.67,194.6,8.16235544]
[1735676318832,8.16235544,194.68,194.62,23.776884]
[1735676320434,8.16235544,194.66,194.6,23.776884]
[1735676320623,8.16235544,194.65,194.6,23.776884]
[1735676320828,8.16235544,194.66,194.6,23.776884]
[1735676322531,8.16235544,194.66,194.59,23.776884]
[1735676322733,8.16235544,194.65,194.59,23.776884]
[1735676323955,8.16235544,194.62,194.56,6.229]
[1735676324137,8.16235544,194.62,194.56,14.39135544]
[1735676324627,8.16235544,194.6,194.54,1.5905]
[1735676325133,8.16235544,194.61,194.54,9.75285544]
[1735676329651,8.16235544,194.62,194.55,28.16235544]
[1735676329866,8.16235544,194.64,194.58,23.776884]
[1735676330165,1.5664,194.71,194.6,8.16235544]
[1735676330370,8.16235544,194.67,194.6,8.16235544]
[1735676330542,8.16235544,194.66,194.59,8.16235544]
[1735676331038,8.16235544,194.68,194.61,8.16235544]
[1735676331656,8.16235544,194.68,194.62,31.93923944]
[1735676331850,8.16235544,194.69,194.62,31.93923944]
[1735676335176,8.16235544,194.68,194.62,23.776884]
[1735676335477,8.16235544,194.69,194.62,33.52973944]
[1735676335763,8.16235544,194.7,194.64,23.776884]
[1735676335959,8.16235544,194.71,194.64,31.93923944]
[1735676336564,8.16235544,194.72,194.65,8.16235544]
[1735676337364,1.6395,194.76,194.66,8.16235544]
[1735676337576,8.16235544,194.73,194.66,31.93923944]
[1735676337985,8.16235544,194.76,194.69,8.16235544]
[1735676338150,8.16235544,194.76,194.7,8.16235544]
[1735676338550,8.16235544,194.77,194.7,8.16235544]
[1735676339359,8.16235544,194.78,194.71,31.93923944]
[1735676340482,8.16235544,194.77,194.7,8.16235544]
[1735676340785,8.16235544,194.77,194.71,8.16235544]
[1735676342754,10.05059468,194.83,194.69,1.5905]
[1735676342755,8.16235544,194.73,194.69,1.5905]
[1735676343086,8.16235544,194.74,194.69,1.5905]
[1735676344260,8.16235544,194.75,194.69,9.75285544]
[1735676344458,8.16235544,194.72,194.69,1.5905]
[1735676344772,8.16235544,194.74,194.69,1.5905]
[1735676344976,8.16235544,194.75,194.69,1.5905]
[1735676345575,8.16235544,194.74,194.69,1.5905]
[1735676346004,8.16235544,194.72,194.69,1.5905]
[1735676346206,8.16235544,194.71,194.65,16.31815544]
[1735676346498,8.16235544,194.7,194.65,8.1558]
[1735676347678,8.16235544,194.71,194.65,8.1558]
[1735676348804,8.16235544,194.71,194.65,16.31815544]
[1735676349293,8.16235544,194.72,194.65,16.31815544]
[1735676352319,8.16235544,194.73,194.66,31.93923944]
[1735676352523,8.16235544,194.73,194.67,8.16235544]
[1735676353023,21.24379468,194.82,194.71,8.16235544]
[1735676353195,8.16235544,194.78,194.71,8.16235544]
[1735676353390,8.16235544,194.76,194.69,8.16235544]
[1735676353614,8.16235544,194.75,194.7,23.776884]
[1735676354621,8.16235544,194.77,194.7,31.93923944]
[1735676354814,8.16235544,194.76,194.7,23.776884]
[1735676358198,8.16235544,194.77,194.7,23.776884]
[1735676359324,8.41109468,194.82,194.72,8.16235544]
[1735676359536,8.16235544,194.8,194.73,8.16235544]
[1735676360030,8.16235544,194.79,194.72,8.16235544]
[1735676360599,8.16235544,194.8,194.72,8.16235544]
[1735676360800,8.16235544,194.79,194.72,8.16235544]
[1735676362120,8.16235544,194.78,194.71,8.16235544]
[1735676362337,8.16235544,194.75,194.68,8.16235544]
[1735676363934,8.16235544,194.75,194.68,8.16235544]
[1735676364232,8.16235544,194.74,194.68,8.16235544]
[1735676364618,8.16235544,194.74,194.67,31.93923944]
[1735676366425,8.16235544,194.75,194.69,23.776884]
[1735676367012,8.16235544,194.76,194.69,8.16235544]
[1735676367340,8.16235544,194.76,194.66,12.8429]
[1735676367341,8.16235544,194.78,194.72,23.776884]
[1735676367539,8.16235544,194.77,194.72,23.776884]
[1735676368331,8.16235544,194.77,194.71,23.776884]
[1735676369937,8.16235544,194.78,194.71,23.776884]